Cogmind - Beta 15 --- EXPLORER MODE // 2025.09.10 @ 20:19:30 Player: Sparranova Result: Destroyed by AG-76923 with Assembled Focal Cannon Performance ------------- Evolutions (3) 1500 Regions Visited (9) 1800 Robots Destroyed (135) 675 Value Destroyed (3472) 3472 Prototype IDs (20) 400 Alien Tech Used (0) 0 Bonus (1600) 1600 TOTAL SCORE: 9447 Bonus ------- Met Imprinter 300 Was Imprinted 300 Destroyed Z-Imprinter 1000 Cogmind --------- Core Integrity 0/700 Matter 300/300 Energy 17/100 System Corruption 1% Temperature Cool (6) Movement Core (50) Location -7/Deep Caves Parts ------- > --- POWER (1) -------- (None) > --- PROPULSION (4) --- (None) > --- UTILITY (6) ------ Improved Cooling System Machine Analyzer Armor Integrity Analyzer > --- WEAPON (3) ------- (None) > --- INVENTORY (5) ---- Zionite Glidesys I Seismic Detector Multitool CR-A16's Pointy Stick Peak State ------------ > --- POWER ------------ Zionite Light DM Reactor > --- PROPULSION ------- Zionite Glidesys I Zionite Glidesys I Zionite Glidesys I Zionite Glidesys I > --- UTILITY ---------- Zionite Biocell Machine Analyzer Armor Integrity Analyzer Improved Reaction Control System Zionite Weapon Casing Zionite Light Carapace > --- WEAPON ----------- Zionite Laser-M Zionite Laser-M Zionite Laser-M > --- INVENTORY -------- Zionite Glidesys I Seismic Detector Phase Shifter Multitool CR-A16's Pointy Stick [Rating: 87] Favorites ----------- Power Light Nuclear Core Engine Light Ion Engine Power Core Light Nuclear Core Reactor Zionite Light DM Reactor Propulsion Wheel Treads Light Treads Leg VSS Leg Wheel Wheel Hover Unit Zionite Glidesys I Utility Targeting Computer Device Seismic Detector Storage Humpback Processor Targeting Computer Protection Medium Armor Plating Weapon EM Pulse Gun Energy Gun EM Pulse Gun Energy Cannon EM Pulse Cannon Ballistic Gun Barrage Gun Ballistic Cannon Light Cannon Launcher Rocket Launcher Special Weapon Mining Laser Slashing Weapon Makeshift Axe Piercing Weapon CR-A16's Pointy Stick Build | -11 -10 -10 -10 -8 -7 -7 -7 -7 -7 ------- Run | Yrd Mat Min Sub Mat Fac Low Low Zio Dee Slots Evolved 7 | . 1 . . 4 2 . . . . Power . | . . . . . . . . . . Propulsion 2 | . . . . 2 . . . . . Utility 4 | . 1 . . 2 1 . . . . Weapon 1 | . . . . . 1 . . . . Parts Attached 100 | 9 10 4 12 21 2 3 1 6 32 Power 10 | 1 1 1 2 2 . . . 1 2 Engine 4 | 1 . . 2 . . . . . 1 Core 5 | . 1 1 . 2 . . . 1 . Reactor 1 | . . . . . . . . . 1 Propulsion 27 | 2 2 1 4 5 . . . . 13 Treads 2 | 2 . . . . . . . . . Leg 2 | . . . . 1 . . . . 1 Wheel 11 | . 2 1 4 4 . . . . . Hover 12 | . . . . . . . . . 12 Flight . | . . . . . . . . . . Utility 32 | 3 2 2 1 5 1 3 . 3 12 Device 12 | 1 1 2 . 1 1 2 . 1 3 Storage 4 | 1 1 . . 1 . . . . 1 Processor 7 | 1 . . . . . 1 . 2 3 Hackware . | . . . . . . . . . . Protection 9 | . . . 1 3 . . . . 5 Artifact . | . . . . . . . . . . Weapon 31 | 3 5 . 5 9 1 . 1 2 5 Energy Gun 9 | 2 2 . . 1 . . . . 4 Energy Cannon 5 | . . . . 4 . . . . 1 Ballistic Gun 8 | . 2 . 2 3 . . 1 . . Ballistic Cannon 3 | . 1 . 1 1 . . . . . Launcher 2 | . . . 1 . 1 . . . . Special Weapon 2 | 1 . . . . . . . 1 . Impact Weapon . | . . . . . . . . . . Slashing Weapon 1 | . . . 1 . . . . . . Piercing Weapon 1 | . . . . . . . . 1 . Special Melee Weapon . | . . . . . . . . . . Unidentified Prototypes 16 | . . 1 . 4 . . . 1 10 Parts Lost 37 | . . 2 5 4 . . . . 26 Power 4 | . . 1 1 . . . . . 2 Propulsion 16 | . . 1 1 3 . . . . 11 Utility 11 | . . . 1 . . . . . 10 Weapon 6 | . . . 2 1 . . . . 3 Highest Loss Streak 11 | . . 1 2 2 . . . . 11 To Critical Strikes . | . . . . . . . . . . Average Backups 19 | 4 19 23 22 30 33 34 33 34 25 Power 1 | . 1 . . 2 3 3 3 2 . Propulsion 1 | . 6 6 5 3 2 2 2 2 . Utility 8 | 1 7 10 11 12 14 14 15 15 12 Weapon 6 | 2 5 5 4 10 11 11 10 12 9 Tool/Special . | . . . . . . . . . . Unused Backups 35 | . 6 2 1 4 . 7 . 1 14 Power 3 | . 1 . . . . 1 . . 1 Propulsion 1 | . 1 . . . . . . . . Utility 17 | . 2 . 1 2 . 4 . 1 7 Weapon 12 | . 2 2 . 2 . 2 . . 4 Tool/Special 2 | . . . . . . . . . 2 Average Slot Usage (%) 91 | . 99 94 90 85 91 91 92 92 88 Core 6 | . 11 12 2 4 7 7 7 7 5 Wheel 24 | . 24 19 19 31 28 28 28 28 5 Hover 1 | . . . . . . . . . 18 Device 11 | . 12 12 9 8 21 14 14 14 8 Storage 8 | . 12 12 12 8 7 7 7 7 7 Processor 12 | . 12 12 12 8 7 13 14 14 14 Protection 1 | . . . 2 6 . . . . 6 Energy Gun 3 | . 5 23 2 . . . . . 16 Ballistic Gun 14 | . 14 . 16 14 18 21 21 15 3 Peak Build Rating 87 | 8 14 19 20 32 35 39 38 46 87 Average Rating 23 | 6 12 14 15 27 34 36 36 40 67 On Entrance 23 | . 8 13 14 20 30 34 36 38 40 Naked Turns . | . . . . . . . . . . Heaviest Build 226 | 17 91 97 98 226 222 219 217 217 222 Greatest Support 60 | 40 20 20 40 60 40 40 40 40 56 Greatest Overweight (x) 27 | 1 4 8 8 10 5 5 5 5 27 Average Overweight (x) 3 | . 3 5 5 4 5 5 5 5 1 Largest Inventory Capacity 35 | 10 25 25 25 35 35 35 35 35 35 Average Capacity 23 | 9 23 25 25 34 35 35 35 35 26 Most Carried 35 | 10 25 25 25 35 34 35 35 35 35 Average Carried 19 | 4 19 23 23 30 33 34 33 34 25 Final Capacity 35 | 10 25 25 25 35 35 35 35 35 5 Final Carried 35 | 10 25 23 25 35 33 33 35 35 4 Class Distribution -------------------- 53% | Hacker-Mutant 23% | Hauler-Skirmisher 17% | Hauler-Mutant Dominant Class ---------------- Hacker-Mutant | -10/Materials Hacker-Mutant | -10/Mines Hacker-Mutant | -10/Subcaves Hauler-Mutant | -8/Materials Hauler-Gunner | -7/Factory Hauler-Skirmisher | -7/Lower Caves Hauler-Skirmisher | -7/Lower Caves Hauler-Mutant | -7/Zion Hauler-Skirmisher | -7/Deep Caves Resources | -11 -10 -10 -10 -8 -7 -7 -7 -7 -7 ----------- Run | Yrd Mat Min Sub Mat Fac Low Low Zio Dee Matter Collected 3746 | 340 416 111 393 1446 95 186 135 70 554 Remotely 30 | 30 . . . . . . . . . Salvage Created 5634 | 244 612 715 393 2271 247 191 242 . 719 Parts 319 | 28 44 25 21 123 9 11 8 . 50 Haulers Intercepted 8 | . 2 . . 6 . . . . . Recyclers Shooed 8 | . 1 1 . 5 1 . . . . Parts Field Recycled . | . . . . . . . . . . Retrieved Matter . | . . . . . . . . . . Parts Self-Destructed . | . . . . . . . . . . Prevented . | . . . . . . . . . . Kills | -11 -10 -10 -10 -8 -7 -7 -7 -7 -7 ------- Run | Yrd Mat Min Sub Mat Fac Low Low Zio Dee Combat Hostiles Destroyed 87 | . 10 8 10 32 2 5 5 . 15 Melee 1 | . . . 1 . . . . . . Guns 80 | . 10 6 7 31 1 5 5 . 15 Cannons 1 | . . . . 1 . . . . . AOE 5 | . . 2 2 . 1 . . . . Classes Destroyed 20 | 3 5 . 5 4 . 1 1 . 1 Worker 5 | 1 . 1 . 2 1 . . . . Builder 5 | . 2 1 . 2 . . . . . Tunneler 12 | 9 . 1 . 2 . . . . . Hauler 8 | . 2 . . 6 . . . . . Recycler 13 | 1 1 4 . 5 2 . . . . Mechanic 1 | . . . . 1 . . . . . Operator 1 | . . . . 1 . . . . . Turret 2 | . . . 2 . . . . . . Watcher 6 | . 3 . . 3 . . . . . Swarmer 20 | . 4 . 4 8 1 3 . . . Grunt 29 | . 6 8 . 13 . . 2 . . Brawler 4 | . . . . 1 . 1 2 . . Duelist 1 | . . . . 1 . . . . . Sentry 11 | . . . 1 9 1 . . . . Programmer 1 | . . . . . . 1 . . . Artisan 1 | . . . 1 . . . . . . Cobbler 1 | . . . 1 . . . . . . Subdweller 5 | . . . 5 . . . . . . Z-Technician 1 | . . . . . . . . . 1 Z-Light 10 | . . . . . . . . . 10 Assembled 5 | . . . . . . . 1 . 4 Best Kill Streak 5 | 5 3 3 4 5 5 3 2 . 3 Combat Bots Only 4 | . 2 2 4 3 2 3 2 . 3 Max Kills in Single Turn 2 | 2 1 2 1 2 2 1 1 . 1 Gunslinging 1 | . . . . 1 . . . . . Exploded 1 | . . 1 1 . 1 . . . . Melee 1 | . . . 1 . . . . . . Uniques/NPCs Destroyed 1 | . . . . . . . . . 1 Z-Imprinter (-7/Deep Caves) Combat | -11 -10 -10 -10 -8 -7 -7 -7 -7 -7 -------- Run | Yrd Mat Min Sub Mat Fac Low Low Zio Dee Hostile Shots Fired 495 | . 45 25 101 148 27 16 12 . 121 Missed 152 | . 12 10 39 45 11 4 5 . 26 Hits 343 | . 33 15 62 103 16 12 7 . 95 Melee 7 | . . . . 5 . . . . 2 Projectile 336 | . 33 15 62 98 16 12 7 . 93 AOE 3 | . 2 . . 1 . . . . . Critical Strikes 9 | . . . 1 7 . 1 . . . Damage Taken 4398 | . 206 162 430 1078 47 111 71 . 2293 Core 1001 | . 72 47 68 83 4 36 9 . 682 Absorbed by Shields 22 | . . . . . 22 . . . . Redirected to Shielding 282 | . . . . . . . . . 282 Ignored by Resistances 2573 | . 145 94 281 666 47 68 41 . 1231 Regen/Repaired (Parts) 278 | . . . . 278 . . . . . Core Remaining (%) 69 | 100 . . 25 84 . . . . . Volleys Fired 456 | 154 50 28 40 114 6 9 11 . 44 Largest 3 | 2 2 2 2 2 3 3 3 . 3 Hottest 236 | 100 100 80 100 126 81 81 86 . 236 Shots Fired 789 | 164 93 58 65 229 12 27 31 . 110 Gun 603 | 20 88 58 49 220 9 27 31 . 101 Cannon 19 | . 1 . 1 8 . . . . 9 Launcher 13 | . . . 10 . 3 . . . . Special 154 | 144 4 . 5 1 . . . . . Kinetic 440 | . 72 . 27 226 9 27 31 . 48 Thermal 219 | 144 7 . 5 1 . . . . 62 Explosive 13 | . . . 10 . 3 . . . . Electromagnetic 117 | 20 14 58 23 2 . . . . . Robot Hit Streak 34 | 15 25 34 18 32 12 11 12 . 20 Robot Miss Streak 3 | . 1 1 1 2 1 2 3 . 3 Penetration Max . | . . . . . . . . . . Secondary Targets 13 | . 1 1 1 8 . . . . 2 Max Gunslinging Chain 1 | . 1 1 1 1 . . . . 1 Shots Hit Robots 509 | 15 72 49 54 185 7 20 25 . 82 Core Hits 232 | 13 30 26 20 81 10 8 10 . 34 Critical Kills 1 | . . . . 1 . . . . . Critical Parts Destroyed 4 | . 2 . 1 . . . . . 1 Critical Strikes 7 | . 2 1 1 1 . . . . 2 Destroy 6 | . 2 . 1 1 . . . . 2 Corrupt 1 | . . 1 . . . . . . . Melee Attacks 26 | . . . 15 8 2 . 1 . . Impact . | . . . . . . . . . . Slashing 26 | . . . 15 8 2 . 1 . . Piercing . | . . . . . . . . . . Sneak Attacks 7 | . . . 2 5 . . . . . Combat Hostiles . | . . . . . . . . . . Follow-up Attacks . | . . . . . . . . . . Damage Inflicted 10618 | 343 923 976 1268 3569 362 369 453 . 2355 Guns 8348 | 204 923 638 589 3050 129 369 453 . 1993 Cannons 528 | . . . 44 122 . . . . 362 Explosions 1097 | 115 . 338 411 . 233 . . . . Melee 621 | . . . 224 397 . . . . . Ramming . | . . . . . . . . . . Kinetic 5865 | . 757 . 415 3145 129 369 453 . 597 Thermal 2259 | 139 24 338 . . . . . . 1758 Explosive 644 | . . . 411 . 233 . . . . Electromagnetic 1229 | 204 142 638 218 27 . . . . . Impact . | . . . . . . . . . . Slashing 621 | . . . 224 397 . . . . . Piercing . | . . . . . . . . . . Highest Corruption 9 | . 2 2 2 9 . . . . 1 Average Corruption 3 | . 1 2 2 8 . . . . 1 Corruption Purged . | . . . . . . . . . . Corruption Blocked . | . . . . . . . . . . Effects 155 | . 24 20 23 75 . . . . 13 Message Errors 51 | . 7 5 10 26 . . . . 3 Matter Fused 30 | . 7 5 2 14 . . . . 2 Heat Flow Errors 18 | . 1 3 2 10 . . . . 2 Energy Discharges 17 | . 2 . 5 7 . . . . 3 Parts Rejected 1 | . . . . 1 . . . . . Parts Fused 2 | . 1 . . 1 . . . . . Data Loss (minor) 17 | . 3 5 . 8 . . . . 1 Data Loss (major) 7 | . 3 . 2 2 . . . . . Misfires 9 | . . 2 1 5 . . . . 1 Alerts 2 | . . . 1 . . . . . 1 Weapon Failures 1 | . . . . 1 . . . . . Overload Shots 9 | . . . . . . . . . 9 Effects 1 | . . . . . . . . . 1 Heat Surge 1 | . . . . . . . . . 1 Overflow Damage 216 | . . 20 34 131 31 . . . . Projectiles . | . . . . . . . . . . Explosions 51 | . . 20 . . 31 . . . . Melee 165 | . . . 34 131 . . . . . Knockbacks . | . . . . . . . . . . Impact . | . . . . . . . . . . Kinetic . | . . . . . . . . . . Secondary . | . . . . . . . . . . Self-Inflicted Damage 64 | . . 38 26 . . . . . . Shots 4 | . . 2 2 . . . . . . Rammed . | . . . . . . . . . . Targets Rammed . | . . . . . . . . . . Kicked . | . . . . . . . . . . Crushed . | . . . . . . . . . . Highest Temperature 565 | 176 144 272 211 231 26 76 101 . 565 Average Temperature 70 | 47 44 66 98 38 19 34 36 . 180 Received Heat Transfer 1850 | . 120 114 246 615 24 . 63 . 668 Effects 16 | . . . . . . . . . 16 Shutdowns 1 | . . . . . . . . . 1 Energy Bleed 1 | . . . . . . . . . 1 Interference 8 | . . . . . . . . . 8 Matter Decay 2 | . . . . . . . . . 2 Short Circuit 2 | . . . . . . . . . 2 Damage (minor) 1 | . . . . . . . . . 1 Damage (core) 1 | . . . . . . . . . 1 Siege Activations . | . . . . . . . . . . Martial Activations . | . . . . . . . . . . Shielding Activations . | . . . . . . . . . . Robots Disrupted . | . . . . . . . . . . Combat Hostiles . | . . . . . . . . . . Robots Corrupted 1 | . . . 1 . . . . . . Combat Hostiles . | . . . . . . . . . . Parts Fried 3 | 1 . 2 . . . . . . . Impact Corruptions . | . . . . . . . . . . Robots Melted . | . . . . . . . . . . Combat Hostiles . | . . . . . . . . . . Parts Melted 4 | . . 1 . . . . . . 3 Heat Transferred 2558 | 200 30 300 . . . . . . 2028 Parts Sabotaged . | . . . . . . . . . . Parts Stolen . | . . . . . . . . . . Parts Stripped . | . . . . . . . . . . Power Chain Reactions 8 | 2 . 6 . . . . . . . Alert | -11 -10 -10 -10 -8 -7 -7 -7 -7 -7 ------- Run | Yrd Mat Min Sub Mat Fac Low Low Zio Dee Maximum Alert Level . | . . . . . . . . . . Low Security (%) 100 | 100 100 100 . 100 100 . . . . Level 1 . | . . . . . . . . . . Level 2 . | . . . . . . . . . . Level 3 . | . . . . . . . . . . Level 4 . | . . . . . . . . . . Level 5 . | . . . . . . . . . . High Security . | . . . . . . . . . . Max Security . | . . . . . . . . . . Peak Influence 133 | 15 75 62 . 133 63 . . . . Initial . | . . . . . . . . . . Average 3 | . 3 6 . 17 16 . . . . Influence Increases 2360 | 55 306 258 440 996 75 130 100 . . Destroy 0b10 Robot/C 1360 | . 200 160 140 640 40 100 80 . . Destroy 0b10 Robot/NC 255 | 55 40 35 . 110 15 . . . . Destroy Leader 338 | . 50 40 . 188 10 30 20 . . Successful Hack 27 | . 11 . . 16 . . . . . Disable Machine 12 | . . 4 . 8 . . . . . Destroy Structure 38 | . 5 19 . 4 10 . . . . Lose Combat Pursuer 330 | . . . 300 30 . . . . . Influence Decreases 2360 | 55 306 258 440 996 47 158 100 . . Entered New Map 16 | . . . . . . 16 . . . Time Decay 2264 | 55 306 258 400 956 47 142 100 . . Lost Part 80 | . . . 40 40 . . . . . Squads Dispatched 4 | . 1 . . 3 . . . . . Investigation 3 | . 1 . . 2 . . . . . Extermination . | . . . . . . . . . . Reinforcement 1 | . . . . 1 . . . . . Assault . | . . . . . . . . . . Garrison . | . . . . . . . . . . Intercept . | . . . . . . . . . . Searches Triggered . | . . . . . . . . . . Construction Impeded . | . . . . . . . . . . Haulers Reinforced . | . . . . . . . . . . Active Scanning Responses . | . . . . . . . . . . Cargo Convoy Interrupts . | . . . . . . . . . . Stealth | -11 -10 -10 -10 -8 -7 -7 -7 -7 -7 --------- Run | Yrd Mat Min Sub Mat Fac Low Low Zio Dee Distress Signals 5 | . . . . 4 1 . . . . Communications Jammed . | . . . . . . . . . . Distress Signals . | . . . . . . . . . . Times Spotted 128 | . 13 8 27 46 2 5 9 . 18 Peak Tracking Total 9 | . 3 2 4 9 2 3 4 . 3 Tactical Retreats 6 | . . . 4 2 . . . . . Traps | -11 -10 -10 -10 -8 -7 -7 -7 -7 -7 ------- Run | Yrd Mat Min Sub Mat Fac Low Low Zio Dee Traps Triggered 5 | . 2 . . 3 . . . . . Indirectly . | . . . . . . . . . . Trap Hack Attempts . | . . . . . . . . . . Triggered . | . . . . . . . . . . Disarmed . | . . . . . . . . . . Reprogrammed 5 | . 5 . . . . . . . . Reused . | . . . . . . . . . . Traps Extracted . | . . . . . . . . . . Installed . | . . . . . . . . . . Triggered . | . . . . . . . . . . Machines | -11 -10 -10 -10 -8 -7 -7 -7 -7 -7 ---------- Run | Yrd Mat Min Sub Mat Fac Low Low Zio Dee Machines Disabled 7 | . . 1 . 2 . . . 4 . Max in Single Turn 1 | . . 1 . 1 . . . 1 . Machines Repaired . | . . . . . . . . . . Machines Dismantled 4 | . . . . . . . . 4 . Machines Sabotaged . | . . . . . . . . . . Overloaded Fab Kills . | . . . . . . . . . . Hacking | -11 -10 -10 -10 -8 -7 -7 -7 -7 -7 --------- Run | Yrd Mat Min Sub Mat Fac Low Low Zio Dee Machines Accessed 32 | . 10 1 1 16 . 2 2 . . Terminals 17 | . 7 . . 10 . . . . . Fabricators . | . . . . . . . . . . Repair Stations 3 | . 1 . . 2 . . . . . Recycling Units 4 | . 2 . . 2 . . . . . Scanalyzers 1 | . . . . 1 . . . . . Garrison Access 1 | . . . . 1 . . . . . Total Hacks 105 | . 40 1 4 52 . 6 2 . . Successful 85 | . 32 1 4 40 . 6 2 . . Failed 20 | . 8 . . 12 . . . . . Catastrophic . | . . . . . . . . . . Database Lockouts . | . . . . . . . . . . Manual 49 | . 26 . . 22 . . 1 . . Terminals 58 | . 28 . . 30 . . . . . Fabricators . | . . . . . . . . . . Repair Stations 14 | . 1 . . 13 . . . . . Recycling Units 17 | . 11 . . 6 . . . . . Scanalyzers 2 | . . . . 2 . . . . . Garrison Access 1 | . . . . 1 . . . . . Terminal Hacks 31 | . 9 1 4 9 . 6 2 . . Record 10 | . . . 4 . . 5 1 . . Part Schematic 4 | . . . . 4 . . . . . Robot Analysis 1 | . . . . 1 . . . . . Prototype ID Bank 3 | . 2 . . 1 . . . . . Open Door 3 | . . 1 . . . 1 1 . . Branch Access Points 1 | . . . . 1 . . . . . Alert Level 2 | . 1 . . 1 . . . . . Reprogram Traps 2 | . 2 . . . . . . . . Dispatch Records 1 | . 1 . . . . . . . . Surveillance Status 1 | . 1 . . . . . . . . Assault Status 1 | . . . . 1 . . . . . Hauler Manifests 1 | . 1 . . . . . . . . Zone Layout 1 | . 1 . . . . . . . . Fabricator Hacks . | . . . . . . . . . . Repair Station Hacks 12 | . . . . 12 . . . . . Scan Component 6 | . . . . 6 . . . . . Repair 6 | . . . . 6 . . . . . Recycling Unit Hacks 5 | . 3 . . 2 . . . . . Retrieve Components 5 | . 3 . . 2 . . . . . Scanalyzer 2 | . . . . 2 . . . . . Insert Component 1 | . . . . 1 . . . . . Analyze 1 | . . . . 1 . . . . . Garrison Access Hacks 1 | . . . . 1 . . . . . Unlock Access 1 | . . . . 1 . . . . . Unauthorized Hacks 33 | . 19 . . 14 . . . . . Terminals 26 | . 13 . . 13 . . . . . Track 5 | . 3 . . 2 . . . . . Botnet 8 | . 3 . . 5 . . . . . Operators 2 | . 2 . . . . . . . . Skim 11 | . 5 . . 6 . . . . . Fabricators . | . . . . . . . . . . Repair Stations 1 | . 1 . . . . . . . . Mechanics 1 | . 1 . . . . . . . . Recycling Units 6 | . 5 . . 1 . . . . . Reject 3 | . 2 . . 1 . . . . . Recyclers 1 | . 1 . . . . . . . . Mask 2 | . 2 . . . . . . . . Scanalyzers . | . . . . . . . . . . Garrison Access . | . . . . . . . . . . Data Cores Recovered . | . . . . . . . . . . Used . | . . . . . . . . . . Hacking Detections 20 | . 8 . . 12 . . . . . Full Trace Events 4 | . 1 . . 3 . . . . . Feedback Events . | . . . . . . . . . . Feedback Blocked . | . . . . . . . . . . Robot Schematics Acquired . | . . . . . . . . . . Robots Built . | . . . . . . . . . . Authchips . | . . . . . . . . . . Time . | . . . . . . . . . . Total Robot Build Rating . | . . . . . . . . . . Part Schematics Acquired 5 | . . . . 5 . . . . . Parts Built . | . . . . . . . . . . Authchips . | . . . . . . . . . . Time . | . . . . . . . . . . Total Part Build Rating . | . . . . . . . . . . Parts Repaired 6 | . . . . 6 . . . . . Time 210 | . . . . 210 . . . . . Parts Recycled . | . . . . . . . . . . Recycled Matter . | . . . . . . . . . . Retrieved Matter . | . . . . . . . . . . Retrieved Components 33 | . 13 . . 20 . . . . . Parts Scanalyzed 1 | . . . . 1 . . . . . Part Schematics Acquired 1 | . . . . 1 . . . . . Parts Damaged 1 | . . . . 1 . . . . . Bothacking | -11 -10 -10 -10 -8 -7 -7 -7 -7 -7 ------------ Run | Yrd Mat Min Sub Mat Fac Low Low Zio Dee Used RIF Installer . | . . . . . . . . . . Robots Hacked . | . . . . . . . . . . Non-combat . | . . . . . . . . . . Combat . | . . . . . . . . . . Robot Hacks Applied . | . . . . . . . . . . Relay Couplers Released . | . . . . . . . . . . Fabnet Peak Effective % . | . . . . . . . . . . Robots Rewired . | . . . . . . . . . . Allies Hacked . | . . . . . . . . . . Hacks Repelled . | . . . . . . . . . . Allies | -11 -10 -10 -10 -8 -7 -7 -7 -7 -7 -------- Run | Yrd Mat Min Sub Mat Fac Low Low Zio Dee Total Allies 4 | . . . . . . . . 4 . Largest Group 4 | . . . . . . . . 4 4 Highest-Rated Group 146 | . . . . . . . . 146 146 Highest-Rated Ally 38 | . . . . . . . . 38 38 Total Orders 1 | . . 1 . . . . . . . RETURN 1 | . . 1 . . . . . . . Ally Attacks . | . . . . . . . . . . Total Damage . | . . . . . . . . . . Kills . | . . . . . . . . . . Allies Corrupted . | . . . . . . . . . . Allies Melted . | . . . . . . . . . . Intel | -11 -10 -10 -10 -8 -7 -7 -7 -7 -7 ------- Run | Yrd Mat Min Sub Mat Fac Low Low Zio Dee Active Infowar (turns) 19516 | . 2229 1062 1667 2947 175 3308 3046 3257 1825 Terrain 10379 | . . . . . . 3287 3046 3257 789 Structural 2712 | . . 1045 1667 . . . . . . Seismic 15947 | . 2229 17 . 2947 175 3298 3046 3255 980 Machine Analysis 545 | . . . . . . . . . 545 ECM 196 | . . . . . 175 21 . . . Robot Analysis Total 1 | . . . . 1 . . . . . Derelict Logs Recovered 10 | . . 1 2 . . 2 2 3 . Drone Launches 4 | . . 4 . . . . . . . Drone Recoveries 4 | . . 4 . . . . . . . Exploration | -11 -10 -10 -10 -8 -7 -7 -7 -7 -7 ------------- Run | Yrd Mat Min Sub Mat Fac Low Low Zio Dee Turns Passed 32751 | 12380 2229 1255 2010 3043 175 3308 3046 3257 2048 Spaces Moved 13163 | 3853 1353 664 1077 1343 98 1352 997 1190 1236 Core 24 | 10 . . . . . . . . 14 Treads 3843 | 3843 . . . . . . . . . Legs . | . . . . . . . . . . Wheels 8299 | . 1353 664 1077 1343 98 1352 997 1190 225 Hover 997 | . . . . . . . . . 997 Flight . | . . . . . . . . . . Fastest Speed 48 | 50 80 140 130 131 155 155 155 155 48 Average Speed 151 | 159 131 161 160 147 155 155 155 155 131 Slowest Speed 1680 | 160 140 200 200 230 155 155 155 155 1680 Overloaded Moves . | . . . . . . . . . . Propulsion Burnouts . | . . . . . . . . . . Robots Hopped . | . . . . . . . . . . Potential Cave-ins . | . . . . . . . . . . Cave-ins Triggered . | . . . . . . . . . . Exploration Rate (%) 83 | 113 100 101 54 96 3 94 93 93 85 Regions Visited 9 Branch Regions 6 Pre-discovered Areas 6 | . . 1 1 2 . 1 . 1 . Known Exits Taken 9 | 1 1 1 1 1 1 1 1 1 . Unknown Exits Taken . | . . . . . . . . . . Scrap Searched 20 | . . 1 4 . . 8 5 2 . Spaces Dug 20 | 12 2 . 2 1 2 . 1 . . Terrain Destroyed 129 | 35 4 20 49 3 12 . 1 . 5 Melee 6 | . . . 2 1 2 . 1 . . Projectile 34 | 23 4 . . 2 . . . . 5 AOE 89 | 12 . 20 47 . 10 . . . . Terrain Rammed . | . . . . . . . . . . Walls Destroyed . | . . . . . . . . . . Machines Disabled . | . . . . . . . . . . Actions | -11 -10 -10 -10 -8 -7 -7 -7 -7 -7 --------- Run | Yrd Mat Min Sub Mat Fac Low Low Zio Dee Total 24876 | 9624 1699 794 1272 2236 110 2554 2478 2527 1582 Wait 10828 | 5585 245 92 106 665 . 1169 1464 1285 217 Move 13154 | 3852 1352 663 1076 1342 97 1351 996 1189 1236 Hop . | . . . . . . . . . . Pick Up 146 | 17 26 3 11 44 . 10 3 4 28 Fast Attach 5 | . 1 . . 1 . . . . 3 Attach 70 | 9 3 2 6 23 2 1 . 1 23 Detach 6 | 2 . . 1 2 . 1 . . . Swap 82 | 5 13 3 12 20 3 3 2 7 14 Drop 66 | . 9 3 5 17 . 10 1 4 17 Fire 456 | 154 50 28 40 114 6 9 11 . 44 Melee 26 | . . . 15 8 2 . 1 . . Ram . | . . . . . . . . . . Kick . | . . . . . . . . . . Crush . | . . . . . . . . . . Escape Stasis . | . . . . . . . . . . Rewire . | . . . . . . . . . . Trap . | . . . . . . . . . . Miscellaneous 37 | . . . . . . . . 37 . Route ------- -11/Scrapyard -10/Materials (discovered 6 exits: *Mat x3 / *Min x2 / *Sub) -10/Mines (discovered 3 exits: *Mat x2 / *Sub) -10/Subcaves (discovered 3 exits: *Mat x2 / *Rec) -8/Materials (discovered 4 exits: *Fac x3 / Gar) -7/Factory (discovered 2 exits: Fac / *Low) -7/Lower Caves -7/Lower Caves (discovered 2 exits: *Fac / *Zio) -7/Zion (discovered 2 exits: *Dee / *Pro) -7/Deep Caves (discovered 1 exit: *Pro) History --------- Turn | Location | Event 5 | -11/Scrapyard | Identified exit to Materials 5 | -11/Scrapyard | Discovered exit to Materials (range 16) 12381 | -11/Scrapyard | Entered Materials 12381 | -10/Materials | Evolved 1 slot: Utility x1 12405 | -10/Materials | Build established: Hacker-Mutant 12892 | -10/Materials | Identified exit to Materials 12892 | -10/Materials | Discovered exit to Materials (range 16) 13021 | -10/Materials | Discovered exit to Materials (range 15) 13317 | -10/Materials | Identified exit to Mines 13317 | -10/Materials | Discovered exit to Mines (range 9) 13794 | -10/Materials | Discovered exit to Materials (range 15) 13940 | -10/Materials | Discovered exit to Mines (range 12) 14195 | -10/Materials | Identified exit to Subcaves 14195 | -10/Materials | Discovered exit to Subcaves (range 8) 14610 | -10/Materials | Entered Mines 14618 | -10/Mines | Found the Drone Emporium 14626 | -10/Mines | Found Prototype Device 14627 | -10/Mines | Identified Splice Drone Bay 14643 | -10/Mines | Discovered exit to Materials (range 11) 14717 | -10/Mines | Received a Rocket Launcher from a helpful Derelict 14935 | -10/Mines | Learned location of Zion (-7) 14935 | -10/Mines | Discovered exit to Materials (range 10) 15272 | -10/Mines | A weapon hastily lodged in a ceiling crevice suddenly fell to the ground 15349 | -10/Mines | Discovered exit to Subcaves (range 9) 15865 | -10/Mines | Entered Subcaves 15867 | -10/Subcaves | Shifting Twisted Machinery released Slug Cannon 15867 | -10/Subcaves | Shifting Twisted Machinery released Humpback 15879 | -10/Subcaves | Identified exit to Recycling 15879 | -10/Subcaves | Discovered exit to Recycling (range 11) 15905 | -10/Subcaves | Core integrity fell below 50% 16089 | -10/Subcaves | Shifting Twisted Machinery released Barrage Gun 16136 | -10/Subcaves | Learned location of Storage (-7) 16477 | -10/Subcaves | Identified exit to Materials 16477 | -10/Subcaves | Discovered exit to Materials (range 4) 16539 | -10/Subcaves | Disturbed a concealed Subdweller 16674 | -10/Subcaves | Shifting Twisted Machinery released Sub. Optics 16679 | -10/Subcaves | Shifting Twisted Machinery released Battle Rifle 16851 | -10/Subcaves | Discovered exit to Materials (range 9) 17556 | -10/Subcaves | Shifting Twisted Machinery released Sub. Laser 17655 | -10/Subcaves | Visited Clippyterm 17659 | -10/Subcaves | Learned Research security intel 17659 | -10/Subcaves | Learned Research machine intel 17875 | -10/Subcaves | Entered Materials 17875 | -8/Materials | Evolved 4 slots: Propulsion x2, Utility x2 17945 | -8/Materials | Identified exit to Garrison 18182 | -8/Materials | Build established: Hauler-Mutant 19333 | -8/Materials | Repaired Sub. Monowheel 19392 | -8/Materials | Repaired Lgt. Nuclear Core 19431 | -8/Materials | Repaired Barrage Gun 19454 | -8/Materials | Identified exit to Factory 19454 | -8/Materials | Discovered exit to Factory (range 5) 19817 | -8/Materials | Discovered exit to Factory (range 15) 20091 | -8/Materials | Learned Factory emergency access door positions 20155 | -8/Materials | Learned Factory stockpile data 20249 | -8/Materials | Repaired Broken Multitool 20276 | -8/Materials | Repaired Wheel 20309 | -8/Materials | Repaired Med. Armor Plating 20392 | -8/Materials | Learned Factory trap positions 20445 | -8/Materials | Learned Storage non-interactive machine intel 20918 | -8/Materials | Entered Factory 20918 | -7/Factory | Evolved 2 slots: Utility x1, Weapon x1 20919 | -7/Factory | Identified exit to Factory 20919 | -7/Factory | Identified exit to Lower Caves 20920 | -7/Factory | Loaded intel: 104 trap records 21093 | -7/Factory | Entered Lower Caves 21098 | -7/Lower Caves | Found DCF Scrap (15 items) 21422 | -7/Lower Caves | Build established: Hauler-Skirmisher 21708 | -7/Lower Caves | Entered an active Warlord outpost 21729 | -7/Lower Caves | Learned Factory terminal intel 21737 | -7/Lower Caves | Learned Factory emergency access door positions 21737 | -7/Lower Caves | Learned Research stockpile data 21737 | -7/Lower Caves | Learned Extension stockpile data 21737 | -7/Lower Caves | Learned Armory terminal intel 22735 | -7/Lower Caves | Identified exit to Lower Caves 22735 | -7/Lower Caves | Discovered exit to Lower Caves (range 12) 24401 | -7/Lower Caves | Entered another Lower Caves area 24508 | -7/Lower Caves | Encountered a Warlord checkpoint 24846 | -7/Lower Caves | Encountered an infested base 24860 | -7/Lower Caves | Identified exit to Zion 24905 | -7/Lower Caves | Attracted the attention of an 0b10 checkpoint 25002 | -7/Lower Caves | Entered a destroyed Warlord outpost 26414 | -7/Lower Caves | Discovered exit to Factory (range 9) 27447 | -7/Lower Caves | Entered Zion 27788 | -7/Zion | Given the Hacking Drone Bay 27792 | -7/Zion | Found Prototype Device 27802 | -7/Zion | Identified Hacking Drone Bay 27939 | -7/Zion | Found Unknown Piercing Weapon 27940 | -7/Zion | Identified CR-A16's Pointy Stick 28077 | -7/Zion | Identified exit to Proximity Caves 28077 | -7/Zion | Discovered exit to Proximity Caves (range 13) 28227 | -7/Zion | Build established: Hauler-Mutant 28619 | -7/Zion | Met Imprinter 28718 | -7/Zion | Imprinted 28721 | -7/Zion | Declared Zion's savior 28842 | -7/Zion | Learned 4 Factory zone layouts 28851 | -7/Zion | Loaded intel: 5 derelict terminal locations 29496 | -7/Zion | Learned location of Quarantine (-3) 30546 | -7/Zion | Identified exit to Deep Caves 30546 | -7/Zion | Discovered exit to Deep Caves (range 10) 30691 | -7/Zion | Saw the warning signs outside the Deep Caves entrance 30704 | -7/Zion | Entered Deep Caves 30704 | -7/Deep Caves | Accompanied by 4 allies 30706 | -7/Deep Caves | Met 5H-AD0 30812 | -7/Deep Caves | Build established: Hauler-Skirmisher 31020 | -7/Deep Caves | Z-Facility disabled 31050 | -7/Deep Caves | Attacked by Z-Imprinter 31064 | -7/Deep Caves | Destroyed Z-Imprinter 31117 | -7/Deep Caves | Found Prototype Protection 31118 | -7/Deep Caves | Identified Zio. Weapon Casing 31219 | -7/Deep Caves | Thanked by 5H-AD0 31889 | -7/Deep Caves | Build established: Scavenger-Gunner 32220 | -7/Deep Caves | Lost 6 parts (1p3n2u) 32273 | -7/Deep Caves | Found Zio. Weapon Casing 32513 | -7/Deep Caves | Identified exit to Proximity Caves 32513 | -7/Deep Caves | Discovered exit to Proximity Caves (range 6) 32565 | -7/Deep Caves | Spotted AG-76923 32627 | -7/Deep Caves | Build established: Scavenger-Tank 32655 | -7/Deep Caves | Core integrity fell below 50% 32685 | -7/Deep Caves | Lost 5 parts (1n4u) 32740 | -7/Deep Caves | Core integrity fell below 20% 32752 | -7/Deep Caves | Destroyed by AG-76923 with Assembled Focal Cannon Last Messages --------------- Acquired Cld. Particle Cannon. Dropped Broken Zio. Laser-M. Acquired Med. Armor Plating. Acquired Imp. Cooling System. Destroyed Prototype Device. AG-76923 GOLEM Unit beginning Prototype Device integration. Zio. Glidesys I destroyed. Overload: Heat surge (+142). Zio. Glidesys I destroyed. Zio. Biocell destroyed. Med. Armor Plating destroyed. AG-76923 Prototype Device integration complete. Acquired Zio. Light Carapace. Zio. Laser-M destroyed. Zio. Glidesys I destroyed. Zio. Light Carapace destroyed. Zio. Laser-M destroyed. Zio. Light DM Reactor destroyed. Cld. Particle Cannon destroyed. Map ----- +----------------------------------------------------+ | | | | | | | | | | | | | | | | | | | | | | | | | | | ????????????????????????#;############???###?????? | | ?######?????????????????# =!!===*==!#???# =#????# | | ## ##????????????????# #???# [#?#### | | # ##???????????????#=### ######???# !### | | #??????????????##%;#############?# ### | | #????????????### !! ######% !# ### ## | | # ##????????????# # *!!! ## | | # ######????????# = | | # ##???????## | | #????????### | | ##??????????#; | | ##??????????# """" | | ###?????####@ """" | | ### ##???## # """" | | ##?## ##??# """" | | #???## ##?#*="!!![ """" | | ##???# #?##"#! ]! """" | | ##??## #??##];!]]] """" | | #???# #???##[/! [ """" | | #???## #???###!|!! """" | | #????# ## ##??##"; !] """" | | #????# #####??##[*;[/! """ | | ##????# ###???# *!%[! """ | | #?????## ###?# ! [ ! """ | | #??????# ### """ | | #?????## ### """ | | ##?????# ##?### """ | | ##?????# #????# """ | | ##????## ## #????#" """ | | ##????### #?# #????## """ | | ##?????# #??##??##### """ | | #?????# #?????## ## "" | | #?????# #?????# ## " | | #?????# #?????# # " | | ####### ####?## " | | ### " | | ######### " | +----------------------------------------------------+ Best States ------------- Heat Dissipation 61 Energy Generation 27 Energy Capacity 770 Matter Stores 300 Matter Capacity 300 Sight Range 16 Terrain Scan Range 16 Terrain Scan Density 135 ECM Strength 1 Armor Coverage 400 Resistance: KI 35 Resistance: TH 35 Resistance: EX 35 Resistance: EM 35 Resistance: I 35 Resistance: S 35 Resistance: P 35 Propulsion Shielding 33 Weapon Shielding 100 Phase Shifting 5 Evasion (%) 65 Targeting Accuracy 8 Armor Integrity Analysis 30 Recoil Reduction 2 Offensive Hacking 20 Item Schematics ----------------- Multitool | -8/Materials | Scanalyzed Plasma Cutter | -8/Materials | Hacked Adv. Targeting Computer | -8/Materials | Hacked Hacking Suite | -8/Materials | Hacked Med. Armor Plating | -8/Materials | Hacked Robot Schematics ------------------ None Fabricated ------------ Nothing Repaired ---------- Sub. Monowheel | 38% | -8/Materials Lgt. Nuclear Core | 38% | -8/Materials Barrage Gun | 28% | -8/Materials Multitool | 99% | -8/Materials | Broken Wheel | 2% | -8/Materials Med. Armor Plating | 32% | -8/Materials Alien Tech Used ----------------- None Achievements -------------- None Challenges ------------ None Game ------ Seed PortableOpticalKatana Manual? 0 Play Time 02:20:02 Cumulative 39.8 hours Start 2025.09.09 @ 18:28:22 End 2025.09.10 @ 20:19:30 Sessions 2 Manual Loads 0 Difficulty Explorer Special Mode None Game No. 7 Rogue 0 Adventurer 0 Explorer 7 Win Type - Total 4 Types 1/0/0/2/0/0/0/0/0/1 Lore% 39 Gallery% 46 Achievement% 60 Wizard Run 0 Options --------- Layout 1 ASCII 0 Keyboard 0 Movement Mouse Keybinds 0 Fullscreen 2 Font 24/Terminus Map View 50x35 Zoom Use 0% Tactical HUD 0 Map Filters NONE Filters NONE Steam 1 RUN: 016e0499-d567-4ff3-81a3-6341f306fd2e